fUST/lending_fUST_20250906
["ID","MTS","AMOUNT","RATE_DAILY","PERIOD"]
[383836159,1757139045387,-480.0,0.00013972,2]
[383836161,1757139045397,-480.0,0.00013972,2]
[383836163,1757139045407,-480.0,0.00013972,2]
[383836165,1757139045416,-151.0,0.00013972,2]
[383836167,1757139045426,-186.92635811,0.00013972,2]
[383836169,1757139045435,-480.0,0.00013972,2]
[383836171,1757139045444,-422.475649,0.00013972,2]
[383836173,1757139045453,-480.0,0.00013972,2]
[383836175,1757139045463,-422.475649,0.00013972,2]
[383836177,1757139045472,-422.475649,0.00013972,2]
[383836179,1757139045481,-422.475649,0.00013972,2]
[383836181,1757139045491,-422.475649,0.00013972,2]
[383836183,1757139045500,-422.475649,0.00013972,2]
[383836185,1757139045509,-422.475649,0.00013972,2]
[383836187,1757139045519,-422.475649,0.00013972,2]
[383836189,1757139045528,-480.0,0.00013972,2]
[383836191,1757139045537,-1193.23,0.00013972,2]
[383836193,1757139045547,-481.01,0.00013972,2]
[383836195,1757139045556,-480.0,0.00013972,2]
[383836197,1757139045567,-151.0,0.00013972,2]
[383836199,1757139045577,-151.0,0.00013972,2]
[383836201,1757139045588,-495.35,0.00013972,2]
[383836203,1757139045597,-874.23,0.00013972,2]
[383836205,1757139045607,-396.91476006,0.00013972,2]
[383836207,1757139045618,-480.0,0.00013972,2]
[383836209,1757139045627,-323.099941,0.00013972,2]
[383836211,1757139045637,-323.099941,0.00013972,2]
[383836213,1757139045647,-480.0,0.00013972,2]
[383836215,1757139045658,-480.0,0.00013972,2]
[383836217,1757139045667,-323.099941,0.00013972,2]
[383836219,1757139045677,-323.099941,0.00013972,2]
[383836221,1757139045687,-151.0,0.00013972,2]
[383836223,1757139045697,-533.6597,0.00013972,2]
[383836225,1757139045707,-151.0,0.00013972,2]
[383836227,1757139045717,-323.099941,0.00013972,2]
[383836229,1757139045727,-533.6597,0.00013972,2]
[383836231,1757139045737,-323.099941,0.00013972,2]
[383836233,1757139045747,-501.23191424,0.00013973,2]
[383836235,1757139045756,-502.3731957,0.00013973,2]
[383836237,1757139045766,-373.40849158,0.00013973,2]
[383836239,1757139045775,-500.9338512,0.00013973,2]
[383836241,1757139045785,-500.66629964,0.00013973,2]
[383836243,1757139045795,-502.29795094,0.00013973,2]
[383836245,1757139045806,-500.0,0.00013973,2]
[383836247,1757139045816,-500.0,0.00013973,2]
[383836249,1757139045825,-500.0,0.00013973,2]
[383836251,1757139045834,-500.8031173,0.00013973,2]
[383836253,1757139045843,-500.0,0.00013973,2]
[383836255,1757139045853,-500.68659067,0.00013973,2]
[383836257,1757139045863,-500.0,0.00013973,2]
[383836260,1757139045873,-500.69844372,0.00013973,2]
[383836262,1757139045882,-501.21831197,0.00013973,2]
[383836264,1757139045893,-500.0,0.00013973,2]
[383836266,1757139045902,-500.70249753,0.00013973,2]
[383836268,1757139045914,-500.0,0.00013973,2]
[383836270,1757139045924,-503.89788965,0.00013973,2]
[383836272,1757139045933,-500.0,0.00013973,2]
[383836274,1757139045943,-213.735653,0.00013973,2]
[383836276,1757139045952,-213.735653,0.00013973,2]
[383836278,1757139045962,-213.735653,0.00013973,2]
[383836280,1757139045972,-213.735653,0.00013973,2]
[383836282,1757139045982,-151.0,0.00013973,2]
[383836284,1757139045991,-151.0,0.00013973,2]
[383836286,1757139046000,-151.0,0.00013973,2]
[383836288,1757139046010,-151.0,0.00013973,2]
[383836290,1757139046019,-151.0,0.00013973,2]
[383836292,1757139046028,-151.0,0.00013973,2]
[383836294,1757139046039,-231.256817,0.00013973,2]
[383836296,1757139046048,-100000.0,0.0001399,2]
[383836298,1757139046057,-151.0,0.0001399,2]
[383836300,1757139046069,-151.0,0.0001399,2]
[383836302,1757139046085,-151.0,0.0001399,2]
[383836305,1757139046102,-309.9647,0.0001399,2]
[383836307,1757139046116,-151.0,0.0001399,2]
[383836310,1757139046135,-309.9647,0.0001399,2]
[383836312,1757139046150,-309.9647,0.0001399,2]
[383836315,1757139046165,-309.9647,0.0001399,2]
[383836318,1757139046181,-151.0,0.0001399,2]
[383836320,1757139046197,-151.0,0.0001399,2]
[383836322,1757139046211,-151.0,0.0001399,2]
[383836323,1757139046225,-151.0,0.0001399,2]
[383836324,1757139046238,-151.0,0.0001399,2]
[383836325,1757139046253,-151.0,0.0001399,2]
[383836326,1757139046267,-151.0,0.0001399,2]
[383836327,1757139046278,-151.0,0.0001399,2]
[383836328,1757139046292,-151.0,0.0001399,2]
[383836329,1757139046306,-151.0,0.0001399,2]
[383836330,1757139046320,-151.0,0.0001399,2]
[383836331,1757139046336,-151.0,0.0001399,2]
[383836333,1757139046355,-189.937431,0.0001399,2]
[383836335,1757139046368,-151.0,0.0001399,2]
[383836338,1757139046384,-151.0,0.0001399,2]
[383836340,1757139046397,-422.475649,0.0001399,2]
[383836343,1757139046413,-422.475649,0.0001399,2]
[383836345,1757139046428,-422.475649,0.0001399,2]
[383836347,1757139046440,-422.475649,0.0001399,2]
[383836350,1757139046455,-151.0,0.0001399,2]
[383836352,1757139046467,-323.099941,0.0001399,2]
[383836354,1757139046479,-323.099941,0.0001399,2]
[383836356,1757139046491,-151.0,0.0001399,2]
[383836359,1757139046504,-533.6597,0.0001399,2]
[383836361,1757139046517,-323.099941,0.0001399,2]
[383836364,1757139046529,-329.3331829,0.00014,2]
[383836366,1757139046541,-161.5667533,0.00014,2]
[383836368,1757139046553,-583.5999924,0.00014,2]
[383836370,1757139046566,-153.0,0.00014,2]
[383836372,1757139046578,-212.0,0.00014038,2]
[383836375,1757139046590,-388.5765985,0.00014082,2]
[383836377,1757139046603,-388.5765985,0.00014082,2]
[383836379,1757139046615,-1968.68759457,0.00014092,2]
[383836382,1757139046627,-388.5765985,0.000141,2]
[383836384,1757139046639,-590.019724,0.000141,2]
[383836386,1757139046652,-168.0,0.00014136,2]
[383836389,1757139046665,-212.0,0.00014139,2]
[383836391,1757139046677,-500.0,0.00014146,2]
[383836393,1757139046689,-151.0,0.000142,2]
[383836396,1757139046701,-1000.0,0.00014221,2]
[383836398,1757139046714,-1000.0,0.00014221,2]
[383836400,1757139046726,-486.09014822,0.00014221,2]
[383836402,1757139046738,-1000.0,0.00014221,2]
[383836405,1757139046750,-1000.87818574,0.00014221,2]
[383836407,1757139046762,-500.86578139,0.00014221,2]
[383836409,1757139046775,-501.52711983,0.00014221,2]
[383836411,1757139046787,-1120.5165859,0.00014221,2]
[383836414,1757139046799,-1000.0,0.00014221,2]
[383836416,1757139046811,-504.02424192,0.00014221,2]
[383836418,1757139046824,-500.0,0.00014221,2]
[383836420,1757139046837,-1001.78167114,0.00014221,2]
[383836422,1757139046849,-1009.16508145,0.00014221,2]
[383836424,1757139046862,-170.80755535,0.00014221,2]
[383836427,1757139046875,-1000.0,0.00014221,2]
[383836429,1757139046888,-1000.0,0.00014221,2]
[383836431,1757139046900,-1000.0,0.00014221,2]
[383836433,1757139046913,-1000.0,0.00014221,2]
[383836436,1757139046927,-1000.0,0.00014221,2]
[383836438,1757139046940,-1392.62846683,0.00014229,2]
[383836440,1757139046952,-480.0,0.00014246,2]
[383836443,1757139046965,-480.0,0.00014246,2]
[383836445,1757139046977,-480.0,0.00014246,2]
[383836447,1757139046990,-480.0,0.00014246,2]
[383836449,1757139047003,-480.0,0.00014246,2]
[383836452,1757139047014,-480.0,0.00014246,2]
[383836454,1757139047028,-480.0,0.00014246,2]
[383836456,1757139047041,-480.0,0.00014246,2]
[383836458,1757139047053,-480.0,0.00014246,2]
[383836461,1757139047068,-480.0,0.00014246,2]
[383836463,1757139047080,-480.0,0.00014246,2]
[383836465,1757139047092,-480.0,0.00014246,2]
[383836468,1757139047106,-480.0,0.00014246,2]
[383836470,1757139047117,-485.81511548,0.00014246,2]
[383836472,1757139047130,-480.0,0.00014246,2]
[383836474,1757139047143,-480.0,0.00014246,2]
[383836477,1757139047156,-480.0,0.00014246,2]
[383836493,1757139047304,-263.09643775,0.00014246,2]
[383836496,1757139047319,-480.0,0.00014246,2]
[383836498,1757139047329,-480.0,0.00014246,2]
[383836500,1757139047338,-151.0,0.00014246,2]
[383836502,1757139047349,-480.0,0.00014246,2]
[383836504,1757139047358,-480.0,0.00014246,2]
[383836506,1757139047368,-480.0,0.00014246,2]
[383836508,1757139047378,-480.0,0.00014246,2]
[383836510,1757139047388,-480.0,0.00014246,2]
[383836512,1757139047397,-480.0,0.00014246,2]
[383836514,1757139047408,-480.0,0.00014246,2]
[383836516,1757139047417,-485.28176517,0.00014246,2]
[383836518,1757139047427,-480.0,0.00014246,2]
[383836520,1757139047436,-151.0,0.00014246,2]
[383836522,1757139047446,-151.0,0.00014246,2]
[383836524,1757139047455,-309.9647,0.00014246,2]
[383836526,1757139047466,-208.232945,0.00014246,2]
[383836528,1757139047476,-309.9647,0.00014246,2]
[383836530,1757139047486,-480.0,0.00014246,2]
[383836532,1757139047496,-309.9647,0.00014246,2]
[383836534,1757139047505,-309.9647,0.00014246,2]
[383836536,1757139047515,-151.0,0.00014246,2]
[383836538,1757139047524,-151.0,0.00014246,2]
[383836540,1757139047533,-480.0,0.00014246,2]
[383836542,1757139047543,-151.0,0.00014246,2]
[383836544,1757139047553,-480.0,0.00014246,2]
[383836546,1757139047563,-480.0,0.00014246,2]
[383836548,1757139047574,-480.0,0.00014246,2]
[383836550,1757139047583,-640.33,0.00014246,2]
[383836552,1757139047593,-480.0,0.00014246,2]
[383836554,1757139047602,-258.80036864,0.00014246,2]
[383836556,1757139047612,-480.0,0.00014246,2]
[383836558,1757139047621,-480.0,0.00014246,2]
[383836560,1757139047630,-480.0,0.00014246,2]
[383836562,1757139047640,-480.0,0.00014246,2]
[383836564,1757139047649,-213.735653,0.00014246,2]
[383836566,1757139047659,-213.735653,0.00014246,2]
[383836567,1757139047669,-213.735653,0.00014246,2]
[383836569,1757139047678,-174.99452547,0.00014246,2]
[383836571,1757139047687,-213.735653,0.00014246,2]
[383836573,1757139047696,-151.0,0.00014246,2]
[383836575,1757139047706,-616.46935791,0.00014246,2]
[383836577,1757139047716,-312.93913249,0.00014246,2]
[383836579,1757139047725,-480.0,0.00014246,2]
[383836581,1757139047735,-480.0,0.00014246,2]
[383836583,1757139047745,-151.0,0.00014246,2]
[383836585,1757139047754,-151.0,0.00014246,2]
[383836587,1757139047763,-483.47251557,0.00014246,2]
[383836589,1757139047773,-480.0,0.00014246,2]
[383836591,1757139047783,-490.32980837,0.00014246,2]
[383836593,1757139047793,-151.0,0.00014246,2]
[383836595,1757139047803,-151.0,0.00014246,2]
[383836597,1757139047812,-231.02744279,0.00014246,2]
[383836599,1757139047822,-3316.78,0.00014246,2]
[383836601,1757139047832,-480.0,0.00014246,2]
[383836603,1757139047841,-480.0,0.00014246,2]
[383836605,1757139047851,-480.0,0.00014246,2]
[383836607,1757139047861,-480.0,0.00014246,2]
[383836609,1757139047870,-151.0,0.00014246,2]
[383836611,1757139047880,-151.0,0.00014246,2]
[383836613,1757139047890,-480.0,0.00014246,2]
[383836615,1757139047899,-480.0,0.00014246,2]
[383836616,1757139047910,-480.0,0.00014246,2]
[383836618,1757139047919,-151.0,0.00014246,2]
[383836620,1757139047929,-480.0,0.00014246,2]
[383836622,1757139047938,-480.0,0.00014246,2]
[383836624,1757139047948,-497.25290357,0.00014246,2]
[383836626,1757139047957,-480.0,0.00014246,2]
[383836628,1757139047967,-480.0,0.00014246,2]
[383836630,1757139047976,-551.65826779,0.00014246,2]
[383836632,1757139047986,-480.0,0.00014246,2]
[383836634,1757139047995,-480.0,0.00014246,2]
[383836636,1757139048005,-151.0,0.00014246,2]
[383836638,1757139048015,-489.38355964,0.00014246,2]
[383836640,1757139048025,-480.0,0.00014246,2]
[383836642,1757139048034,-480.0,0.00014246,2]
[383836644,1757139048044,-480.0,0.00014246,2]
[383836646,1757139048053,-480.0,0.00014246,2]
[383836648,1757139048062,-480.0,0.00014246,2]
[383836650,1757139048071,-482.20014706,0.00014246,2]
[383836652,1757139048081,-481.87159865,0.00014246,2]
[383836654,1757139048091,-480.0,0.00014246,2]
[383836656,1757139048100,-480.0,0.00014246,2]
[383836658,1757139048109,-480.0,0.00014246,2]
[383836660,1757139048119,-480.0,0.00014246,2]
[383836662,1757139048128,-480.0,0.00014246,2]
[383836664,1757139048138,-574.64363521,0.00014246,2]
[383836666,1757139048148,-480.0,0.00014246,2]
[383836668,1757139048158,-480.0,0.00014246,2]
[383836670,1757139048167,-481.81926554,0.00014246,2]
[383836672,1757139048179,-480.0,0.00014246,2]
[383836674,1757139048188,-480.0,0.00014246,2]
[383836676,1757139048198,-480.0,0.00014246,2]
[383836678,1757139048208,-480.0,0.00014246,2]
[383836680,1757139048217,-480.0,0.00014246,2]
[383836682,1757139048227,-480.0,0.00014246,2]
[383836684,1757139048235,-480.0,0.00014246,2]
[383836686,1757139048245,-151.0,0.00014246,2]
[383836688,1757139048254,-480.0,0.00014246,2]
[383836690,1757139048263,-482.28967182,0.00014246,2]
[383836692,1757139048272,-151.0,0.00014246,2]
[383836693,1757139048282,-400.55611251,0.00014246,2]
[383836695,1757139048292,-480.0,0.00014246,2]
[383836697,1757139048301,-480.0,0.00014246,2]
[383836699,1757139048310,-480.0,0.00014246,2]
[383836701,1757139048320,-480.0,0.00014246,2]
[383836703,1757139048329,-480.0,0.00014246,2]
[383836705,1757139048339,-480.0,0.00014246,2]
[383836707,1757139048348,-490.70640921,0.00014246,2]
[383836709,1757139048358,-480.0,0.00014246,2]
[383836711,1757139048367,-480.0,0.00014246,2]
[383836713,1757139048383,-480.0,0.00014246,2]
[383836715,1757139048392,-480.0,0.00014246,2]
[383836717,1757139048401,-480.0,0.00014246,2]
[383836719,1757139048410,-480.0,0.00014246,2]
[383836721,1757139048421,-480.0,0.00014246,2]
[383836723,1757139048430,-393.08494558,0.00014246,2]
[383836725,1757139048440,-480.0,0.00014246,2]
[383836727,1757139048450,-480.0,0.00014246,2]
[383836729,1757139048461,-480.0,0.00014246,2]
[383836731,1757139048470,-480.0,0.00014246,2]
[383836733,1757139048480,-480.0,0.00014246,2]
[383836735,1757139048490,-236.86474853,0.00014246,2]
[383836737,1757139048501,-480.0,0.00014246,2]
[383836739,1757139048510,-480.0,0.00014246,2]
[383836741,1757139048520,-151.0,0.00014246,2]
[383836743,1757139048530,-151.0,0.00014246,2]
[383836745,1757139048540,-480.0,0.00014246,2]
[383836747,1757139048550,-151.0,0.00014246,2]
[383836749,1757139048560,-480.0,0.00014246,2]
[383836751,1757139048570,-480.0,0.00014246,2]
[383836753,1757139048579,-480.0,0.00014246,2]
[383836755,1757139048588,-501.41930261,0.00014246,2]
[383836756,1757139048598,-480.0,0.00014246,2]
[383836759,1757139048608,-480.0,0.00014246,2]
[383836761,1757139048618,-19527.55,0.00014246,2]
[383836762,1757139048628,-480.0,0.00014246,2]
[383836765,1757139048638,-480.0,0.00014246,2]
[383836766,1757139048649,-910.48,0.00014246,2]
[383836769,1757139048659,-480.0,0.00014246,2]
[383836771,1757139048668,-480.0,0.00014246,2]
[383836772,1757139048678,-480.0,0.00014246,2]
[383836774,1757139048688,-531.73942943,0.00014246,2]
[383836777,1757139048698,-480.0,0.00014246,2]
[383836779,1757139048707,-480.0,0.00014246,2]
[383836780,1757139048717,-480.0,0.00014246,2]
[383836782,1757139048727,-480.0,0.00014246,2]
[383836784,1757139048736,-480.0,0.00014246,2]
[383836786,1757139048745,-480.0,0.00014246,2]
[383836788,1757139048755,-480.0,0.00014246,2]
[383836791,1757139048764,-480.0,0.00014246,2]
[383836793,1757139048775,-1281.98,0.00014246,2]
[383836795,1757139048784,-480.0,0.00014246,2]
[383836797,1757139048794,-1262.83,0.00014246,2]
[383836798,1757139048803,-480.0,0.00014246,2]
[383836801,1757139048813,-480.0,0.00014246,2]
[383836802,1757139048823,-480.0,0.00014246,2]
[383836804,1757139048833,-480.0,0.00014246,2]
[383836806,1757139048842,-480.0,0.00014246,2]
[383836808,1757139048852,-1093.89,0.00014246,2]
[383836810,1757139048863,-480.0,0.00014246,2]
[383836812,1757139048873,-480.0,0.00014246,2]
[383836814,1757139048883,-480.0,0.00014246,2]
[383836816,1757139048893,-480.0,0.00014246,2]
[383836818,1757139048903,-480.0,0.00014246,2]
[383836820,1757139048913,-743.75,0.00014246,2]
[383836822,1757139048923,-480.0,0.00014246,2]
[383836824,1757139048932,-480.0,0.00014246,2]
[383836826,1757139048942,-480.0,0.00014246,2]
[383836828,1757139048953,-480.0,0.00014246,2]
[383836830,1757139048963,-480.0,0.00014246,2]
[383836832,1757139048973,-480.0,0.00014246,2]
[383836834,1757139048982,-208.98692899,0.00014246,2]
[383836836,1757139048992,-480.0,0.00014246,2]
[383836838,1757139049001,-480.0,0.00014246,2]
[383836840,1757139049011,-480.0,0.00014246,2]
[383836842,1757139049020,-480.0,0.00014246,2]
[383836844,1757139049030,-480.0,0.00014246,2]
[383836846,1757139049040,-480.0,0.00014246,2]
[383836848,1757139049049,-480.0,0.00014246,2]
[383836850,1757139049059,-581.77,0.00014246,2]
[383836851,1757139049068,-480.0,0.00014246,2]
[383836852,1757139049078,-480.0,0.00014246,2]
[383836853,1757139049087,-480.0,0.00014246,2]
[383836854,1757139049096,-480.0,0.00014246,2]
[383836855,1757139049105,-480.0,0.00014246,2]
[383836856,1757139049115,-480.0,0.00014246,2]
[383836857,1757139049124,-480.0,0.00014246,2]
[383836858,1757139049134,-480.0,0.00014246,2]
[383836859,1757139049143,-482.09117241,0.00014246,2]
[383836860,1757139049152,-480.0,0.00014246,2]
[383836861,1757139049162,-480.0,0.00014246,2]
[383836862,1757139049171,-480.0,0.00014246,2]
[383836863,1757139049180,-816.05,0.00014246,2]
[383836864,1757139049189,-1046.82,0.00014246,2]
[383836865,1757139049199,-480.0,0.00014246,2]
[383836866,1757139049207,-480.0,0.00014246,2]
[383836867,1757139049216,-480.0,0.00014246,2]
[383836868,1757139049225,-480.0,0.00014246,2]
[383836869,1757139049234,-480.0,0.00014246,2]
[383836870,1757139049243,-281.36,0.00014246,2]
[383836871,1757139049252,-169.65169956,0.00014246,2]
[383836872,1757139049262,-1248.87,0.00014246,2]
[383836874,1757139049272,-480.0,0.00014246,2]
[383836876,1757139049281,-480.0,0.00014246,2]
[383836878,1757139049291,-482.3856939,0.00014246,2]
[383836880,1757139049301,-480.0,0.00014246,2]
[383836882,1757139049311,-480.0,0.00014246,2]
[383836885,1757139049320,-480.0,0.00014246,2]
[383836887,1757139049330,-5778.09,0.00014246,2]
[383836889,1757139049339,-480.0,0.00014246,2]
[383836891,1757139049348,-800.42,0.00014246,2]
[383836892,1757139049357,-480.0,0.00014246,2]
[383836894,1757139049367,-480.0,0.00014246,2]
[383836896,1757139049377,-480.0,0.00014246,2]
[383836898,1757139049386,-480.0,0.00014246,2]
[383836900,1757139049395,-492.83,0.00014246,2]
[383836902,1757139049406,-480.0,0.00014246,2]
[383836905,1757139049415,-480.0,0.00014246,2]
[383836907,1757139049424,-480.0,0.00014246,2]
[383836918,1757139049526,-480.0,0.00014246,2]
[383836920,1757139049536,-480.0,0.00014246,2]
[383836922,1757139049545,-480.0,0.00014246,2]
[383836924,1757139049555,-480.0,0.00014246,2]
[383836926,1757139049565,-480.0,0.00014246,2]
[383836928,1757139049575,-480.0,0.00014246,2]
[383836930,1757139049584,-640.97,0.00014246,2]
[383836932,1757139049594,-480.0,0.00014246,2]
[383836934,1757139049603,-480.0,0.00014246,2]
[383836936,1757139049613,-480.0,0.00014246,2]
[383836938,1757139049622,-480.0,0.00014246,2]
[383836940,1757139049631,-480.0,0.00014246,2]
[383836942,1757139049640,-480.0,0.00014246,2]
[383836944,1757139049649,-480.0,0.00014246,2]
[383836946,1757139049658,-488.71,0.00014246,2]
[383836948,1757139049668,-481.77219081,0.00014246,2]
[383836950,1757139049677,-1239.86,0.00014246,2]
[383836952,1757139049687,-480.0,0.00014246,2]
[383836954,1757139049696,-252.0223145,0.00014246,2]
[383836956,1757139049705,-2663.58,0.00014246,2]
[383836958,1757139049714,-480.0,0.00014246,2]
[383836960,1757139049724,-2136.46,0.00014246,2]
[383836962,1757139049733,-155.79499817,0.00014246,2]
[383836964,1757139049742,-480.0,0.00014246,2]
[383836966,1757139049751,-480.0,0.00014246,2]
[383836968,1757139049761,-480.0,0.00014246,2]
[383836970,1757139049771,-480.0,0.00014246,2]
[383836972,1757139049780,-5521.58,0.00014246,2]
[383836974,1757139049790,-606.09,0.00014246,2]
[383836976,1757139049800,-480.0,0.00014246,2]
[383836978,1757139049810,-480.0,0.00014246,2]
[383836980,1757139049821,-480.0,0.00014246,2]
[383836982,1757139049831,-1193.23,0.00014246,2]
[383836984,1757139049841,-480.0,0.00014246,2]
[383836986,1757139049851,-495.35,0.00014246,2]
[383836988,1757139049860,-874.23,0.00014246,2]
[383836990,1757139049871,-480.0,0.00014246,2]
[383836992,1757139049880,-480.0,0.00014246,2]
[383836994,1757139049890,-150000.0,0.00014246,2]
[383836996,1757139049900,-30865.76098873,0.00014246,2]
[383837014,1757139050065,-152.413955,0.00013972,2]
[383837016,1757139050075,-52917.93470904,0.00014246,2]
[383837082,1757139050702,-340.365,0.00013363,2]
[383843106,1757139172896,151.0,0.00025,30]
[383843107,1757139387433,250.37,0.00027397,120]
[383843114,1757139436810,300.0,0.00013227,2]
[383843115,1757139461796,264.0,0.00013226,2]
[383843116,1757139485749,264.0,0.00013226,2]
[383843117,1757139509272,264.0,0.00013226,2]
[383843118,1757139532871,264.0,0.00013226,2]
[383843119,1757139556715,264.0,0.00013226,2]
[383843120,1757139581139,264.0,0.00013226,2]
[383843121,1757139604474,210.74578015,0.00013226,2]
[383843122,1757139604499,53.25421985,0.00013226,2]
[383843123,1757139627275,264.0,0.00013226,2]
[383843129,1757139635675,264.0,0.00013226,2]
[383843139,1757139660162,823.67028131,0.00013225,2]
[383843142,1757139856179,1200.0,0.00013225,2]
[383843234,1757140041079,241.58604471,0.0001309,2]
[383843277,1757140145936,-1200.0,0.00013493,2]
[383843278,1757140145967,-1200.0,0.00013493,2]
[383843279,1757140145997,-300.0,0.00013493,2]
[383843280,1757140146026,-1167.11521957,0.00013494,2]
[383843281,1757140146054,-500.0,0.00013494,2]
[383843282,1757140146083,-300.0,0.00013494,2]
[383843283,1757140146112,-300.0,0.00013494,2]
[383843284,1757140146320,-300.0,0.00013494,2]
[383843285,1757140146349,-300.0,0.00013494,2]
[383843286,1757140146378,-458.24473165,0.00013494,2]
[383843287,1757140146408,-500.0,0.00013494,2]
[383843288,1757140146437,-500.0,0.00013494,2]
[383843289,1757140146468,-500.0,0.00013494,2]
[383843290,1757140146497,-500.0,0.00013494,2]
[383843291,1757140146525,-500.0,0.00013494,2]
[383843292,1757140146556,-500.0,0.00013494,2]
[383843293,1757140146584,-500.0,0.00013494,2]
[383843294,1757140146613,-383.5205367,0.00013494,2]
[383843295,1757140147050,-116.4794633,0.00013494,2]
[383843296,1757140147079,-500.0,0.00013494,2]
[383843297,1757140147108,-500.0,0.00013494,2]
[383843298,1757140147148,-500.0,0.00013494,2]
[383843299,1757140147182,-500.0,0.00013494,2]
[383843300,1757140147210,-500.0,0.00013494,2]
[383843301,1757140147240,-500.0,0.00013494,2]
[383843302,1757140147269,-500.0,0.00013494,2]
[383843303,1757140147296,-500.0,0.00013494,2]
[383843304,1757140147323,-500.0,0.00013494,2]
[383843305,1757140147352,-267.0510734,0.00013494,2]
[383843306,1757140147479,-232.9489266,0.00013494,2]
[383843307,1757140147511,-500.0,0.00013494,2]
[383843308,1757140147543,-500.0,0.00013494,2]
[383843309,1757140147573,-500.0,0.00013494,2]
[383843310,1757140147604,-500.0,0.00013494,2]
[383843311,1757140147633,-500.0,0.00013494,2]
[383843312,1757140147664,-500.0,0.00013494,2]
[383843313,1757140147693,-500.0,0.00013494,2]
[383843314,1757140147723,-500.0,0.00013494,2]
[383843315,1757140147753,-500.0,0.00013494,2]
[383843316,1757140147782,-34.1121468,0.00013494,2]
[383843317,1757140147931,-465.8878532,0.00013494,2]
[383843318,1757140147963,-500.0,0.00013494,2]
[383843319,1757140147993,-500.0,0.00013494,2]
[383843320,1757140148022,-500.0,0.00013494,2]
[383843321,1757140148053,-500.0,0.00013494,2]
[383843322,1757140148083,-500.0,0.00013494,2]
[383843323,1757140148114,-500.0,0.00013494,2]
[383843324,1757140148145,-500.0,0.00013494,2]
[383843325,1757140148177,-500.0,0.00013494,2]
[383843326,1757140148206,-500.0,0.00013494,2]
[383843327,1757140148315,-447.16477834,0.00013494,2]
[383843328,1757140148345,-500.0,0.00013494,2]
[383843329,1757140148374,-500.0,0.00013494,2]
[383843330,1757140148404,-500.0,0.00013494,2]
[383843331,1757140148435,-500.0,0.00013494,2]
[383843332,1757140148463,-500.0,0.00013494,2]
[383843333,1757140148491,-500.0,0.00013494,2]
[383843334,1757140148520,-467.40578175,0.00013494,2]
[383843335,1757140148552,-172.65280829,0.00013494,2]
[383843336,1757140148585,-500.0,0.00013494,2]
[383843337,1757140148616,-325.56326324,0.00013494,2]
[383843338,1757140148656,-174.43673676,0.00013494,2]
[383843339,1757140148687,-544.70617553,0.00013494,2]
[383843340,1757140148720,-500.0,0.00013494,2]
[383843341,1757140148878,-500.0,0.00013494,2]
[383843342,1757140148909,-500.0,0.00013494,2]
[383843343,1757140148939,-500.0,0.00013494,2]
[383843344,1757140148970,-500.0,0.00013494,2]